bitfinex-derivatives/quotes_SOLF0:USTF0_20251122
["timestamp","ask_amount","ask_price","bid_price","bid_amount"]
[1763806772070,7.19380548,126.26,126.24,0.05907703]
[1763806773178,10.21380548,126.26,126.24,0.05907703]
[1763806774073,3.02,126.25,126.24,0.05907703]
[1763806774778,10.155,126.24,126.19,3.0]
[1763806775770,0.05655248,126.23,126.2,3.09257305]
[1763806776064,10.31185248,126.23,126.2,0.05257305]
[1763806776477,10.31185248,126.23,126.2,3.09257305]
[1763806776674,7.1359,126.22,126.2,0.05257305]
[1763806776877,10.1559,126.22,126.2,0.05257305]
[1763806778271,3.07655248,126.23,126.2,0.05257305]
[1763806779773,7.1358,126.22,126.2,0.05257305]
[1763806779973,3.02,126.21,126.2,0.05257305]
[1763806780172,3.02,126.21,126.14,3.04]
[1763806780369,10.1569,126.2,126.15,3.09]
[1763806781182,0.05879607,126.19,126.16,3.14433911]
[1763806783285,0.05879607,126.19,126.17,3.09]
[1763806783787,0.05879607,126.19,126.17,10.2284]
[1763806783970,0.05879607,126.19,126.18,3.09]
[1763806787576,3.02,126.23,126.19,3.09]
[1763806788687,0.05695371,126.22,126.2,3.1453829]
[1763806789286,3.07695371,126.22,126.2,0.0553829]
[1763806791789,0.05695371,126.22,126.2,3.1453829]
[1763806794689,3.02,126.21,126.2,0.0553829]
[1763806796295,9.11806568,126.21,126.2,0.0553829]
[1763806796594,3.02,126.18,126.13,16.74]
[1763806797495,7.1392,126.16,126.14,0.05930265]
[1763806798195,0.05606843,126.17,126.14,3.17930265]
[1763806801893,0.05606843,126.17,126.14,10.31940265]
[1763806802096,0.05606843,126.17,126.15,3.12]
[1763806802293,0.05606843,126.17,126.14,3.17930265]
[1763806804089,10.21476843,126.17,126.14,3.17930265]
[1763806804895,7.19476843,126.17,126.14,3.17930265]
[1763806806091,10.1792,126.16,126.14,0.05930265]
[1763806807697,0.05606843,126.17,126.14,3.20930265]
[1763806808593,0.05606843,126.17,126.15,7.1396]
[1763806808901,0.05606843,126.17,126.16,3.15]
[1763806809202,10.175,126.24,126.18,3.15]
[1763806809500,3.04,126.24,126.18,3.15]
[1763806810095,0.05145273,126.22,126.2,0.05858118]
[1763806810300,10.22725273,126.22,126.2,0.05858118]
[1763806810900,3.04,126.21,126.2,0.05858118]
[1763806812005,0.05145273,126.22,126.2,0.05858118]
[1763806812600,0.05145273,126.22,126.2,3.20858118]
[1763806813802,110.9441,126.29,126.2,3.20858118]
[1763806813803,10.1732,126.27,126.2,3.20858118]
[1763806813997,3.04,126.27,126.2,3.15]
[1763806814895,0.05355152,126.25,126.22,3.2064765]
[1763806815091,3.09355152,126.25,126.22,0.0564765]
[1763806816207,3.04,126.23,126.22,0.0564765]
[1763806817902,3.04,126.23,126.15,111.0591]
[1763806817903,3.04,126.21,126.15,19.89]
[1763806818298,3.04,126.18,126.15,16.74]
[1763806818807,10.23412636,126.18,126.15,16.79273343]
[1763806820801,7.1386,126.17,126.15,16.79273343]
[1763806821605,3.09602636,126.18,126.15,16.79273343]
[1763806822005,0.05602636,126.18,126.16,3.15]
[1763806823106,0.05602636,126.18,126.15,16.79273343]
[1763806823600,0.05602636,126.18,126.15,19.94273343]
[1763806825409,0.05602636,126.18,126.16,3.15]
[1763806827498,0.05602636,126.18,126.17,3.15]
[1763806827708,0.05602636,126.18,126.15,16.79273343]
[1763806827709,3.09602636,126.18,126.15,0.05273343]
[1763806827909,3.04,126.16,126.15,0.05273343]
[1763806828209,3.04,126.16,126.11,19.87]
[1763806828612,10.1798,126.15,126.11,19.87]
[1763806828807,10.1798,126.15,126.08,3.15]
[1763806828808,3.04,126.13,126.08,3.15]
[1763806829000,3.04,126.13,126.06,3.15]
[1763806829204,0.05533702,126.11,126.09,3.15]
[1763806830406,0.05533702,126.11,126.08,0.05705107]
[1763806830608,0.05533702,126.11,126.08,3.20705107]
[1763806832223,3.09533702,126.11,126.08,0.05705107]
[1763806832422,10.23763702,126.11,126.08,0.05705107]
[1763806832624,3.04,126.1,126.08,0.05705107]
[1763806833026,3.04,126.09,126.05,16.74]
[1763806833417,3.04,126.09,126.05,19.89]
[1763806834129,0.05824345,126.08,126.06,3.15]
[1763806835230,0.05824345,126.08,126.06,10.2946]
[1763806835431,0.05824345,126.08,126.07,3.15]
[1763806839531,111.0606,126.16,126.1,3.15]
[1763806839532,10.3392,126.16,126.1,3.15]
[1763806839727,10.3392,126.16,126.1,19.89]
[1763806840330,3.2,126.16,126.11,3.15]
[1763806840526,0.05954684,126.15,126.12,3.20502908]
[1763806843432,3.25954684,126.15,126.12,3.20502908]
[1763806843632,3.25954684,126.15,126.12,0.05502908]
[1763806844239,0.05954684,126.15,126.12,3.20502908]
[1763806846631,0.05954684,126.15,126.14,3.15]
[1763806848338,0.05954684,126.15,126.14,19.89]
[1763806849137,10.3367,126.21,126.14,19.89]
[1763806849328,3.2,126.24,126.17,3.09]
[1763806849729,3.2,126.24,126.18,16.74]
[1763806850034,10.335,126.24,126.18,19.83]
[1763806850237,0.05707641,126.22,126.2,3.14622713]
[1763806851838,3.25707641,126.22,126.2,0.05622713]
[1763806852138,0.05707641,126.22,126.2,3.14622713]
[1763806854032,0.05707641,126.22,126.2,0.05622713]
[1763806854233,3.25707641,126.22,126.2,0.05622713]
[1763806854634,10.39287641,126.22,126.2,0.05622713]
[1763806855036,0.05707641,126.22,126.2,3.14622713]
[1763806857141,3.25707641,126.22,126.2,0.05622713]
[1763806858243,3.2,126.21,126.18,16.74]
[1763806859143,3.2,126.21,126.18,16.7994181]
[1763806859534,7.137,126.2,126.18,16.7994181]
[1763806859738,10.337,126.2,126.18,16.7994181]
[1763806860941,3.2,126.19,126.18,16.7994181]
[1763806861342,3.2,126.19,126.18,0.0594181]
[1763806861548,10.337,126.2,126.18,0.0594181]
[1763806862048,3.2,126.19,126.18,0.0594181]
[1763806865844,10.267,126.2,126.18,0.0594181]
[1763806866456,3.13,126.19,126.18,0.0594181]
[1763806868756,7.137,126.2,126.18,0.0594181]
[1763806868950,3.13,126.19,126.18,0.0594181]
[1763806869756,3.13,126.16,126.13,16.72]
[1763806870160,3.13,126.16,126.13,19.82]
[1763806870861,3.18399382,126.16,126.13,19.82]
[1763806871561,7.1398,126.15,126.13,19.82]
[1763806871861,3.13,126.14,126.1,3.1]
[1763806872063,10.33017105,126.13,126.1,3.1]
[1763806872361,10.33017105,126.13,126.08,19.82]
[1763806872362,3.13,126.12,126.08,19.82]
[1763806873356,3.13,126.12,126.09,3.1]
[1763806873558,7.142,126.11,126.09,3.1]
[1763806875158,7.20047105,126.13,126.09,3.1]
[1763806875757,10.33047105,126.13,126.09,3.1]
[1763806875959,0.05927105,126.13,126.09,3.1]
[1763806877261,0.05927105,126.13,126.1,7.1424]
[1763806877564,0.05927105,126.13,126.08,127.8407]
[1763806877565,0.05927105,126.13,126.11,3.1]
[1763806877764,3.13,126.19,126.11,3.15706514]
[1763806877960,3.13,126.19,126.1,111.1011]
[1763806877961,10.2676,126.19,126.14,3.09]
[1763806878760,0.05409825,126.18,126.15,3.14898366]
[1763806882963,0.05409825,126.18,126.17,3.09]
[1763806884867,3.13,126.25,126.18,3.09]
[1763806885066,3.13,126.25,126.19,3.09]
[1763806885669,3.1815748,126.23,126.21,0.05589516]
[1763806888671,0.0515748,126.23,126.21,3.14589516]
[1763806890071,3.1815748,126.23,126.21,0.05589516]
[1763806890469,10.2664,126.21,126.15,10.2295]
[1763806890969,3.13,126.21,126.16,3.09]
[1763806891461,3.13,126.18,126.14,19.81]
[1763806891663,3.13,126.16,126.15,0.05092103]
[1763806892167,3.13,126.15,126.09,16.72]
[1763806892680,3.13,126.13,126.09,19.82]
[1763806892972,3.13,126.12,126.06,3.1]
[1763806893172,0.05590574,126.1,126.06,3.1]
[1763806893473,3.18590574,126.1,126.04,16.72]
[1763806893679,3.18590574,126.1,126.04,19.82]
[1763806894584,10.32860574,126.1,126.05,3.1]
[1763806895970,0.05590574,126.1,126.05,3.1]
[1763806896262,0.05590574,126.1,126.06,3.14]
[1763806897177,0.05590574,126.1,126.07,3.14]
[1763806898776,0.05590574,126.1,126.08,3.14]
[1763806901576,3.29590574,126.1,126.06,3.14]
[1763806902874,3.29590574,126.1,126.04,23.8655]
[1763806903482,10.43850574,126.1,126.04,27.0055]
[1763806903882,10.43850574,126.1,126.04,16.72]
[1763806903883,3.24,126.09,126.04,16.72]
[1763806904083,3.24,126.07,126.04,16.72]
[1763806904282,3.29214136,126.07,126.04,16.72]
[1763806904478,0.05214136,126.07,126.05,3.14]
[1763806908486,3.24,126.13,126.06,3.14]
[1763806909381,3.24,126.13,126.08,0.05456436]
[1763806909689,3.28992308,126.11,126.08,0.05456436]
[1763806909891,3.28992308,126.11,126.08,0.05359652]
[1763806911285,3.24,126.1,126.08,0.05359652]
[1763806915105,0.04992308,126.11,126.08,3.19359652]
[1763806915399,3.28992308,126.11,126.08,0.05359652]
[1763806916300,10.43192308,126.11,126.08,0.05359652]
[1763806916495,3.24,126.1,126.08,0.05359652]
[1763806917695,3.24,126.09,126.08,0.05359652]
[1763806918501,3.28992308,126.11,126.08,0.05359652]
[1763806920307,0.04992308,126.11,126.08,3.19359652]
[1763806920703,0.04992308,126.11,126.1,3.14]
[1763806923312,3.28992308,126.11,126.08,3.19359652]
[1763806923507,3.28992308,126.11,126.08,0.05359652]
[1763806924313,3.24,126.1,126.08,0.05359652]
[1763806925821,0.04992308,126.11,126.08,3.20359652]
[1763806926206,0.04992308,126.11,126.09,3.15]
[1763806926404,3.28,126.16,126.09,3.15]
[1763806926801,3.28,126.16,126.12,3.15]
[1763806927315,3.28,126.16,126.09,10.2926]
[1763806927509,3.33409296,126.14,126.11,0.06088296]
[1763806928809,3.28,126.13,126.11,0.06088296]
[1763806929708,7.19439296,126.14,126.11,0.06088296]
[1763806929905,3.33409296,126.14,126.11,3.21088296]
[1763806933320,3.33409296,126.14,126.12,3.15]
[1763806933321,0.05409296,126.14,126.12,3.15]
[1763806933521,3.33409296,126.14,126.11,0.06088296]
[1763806934111,0.05409296,126.14,126.11,3.21088296]
[1763806936615,0.05409296,126.14,126.11,10.35278296]
[1763806936926,3.33409296,126.14,126.11,0.06088296]
[1763806938830,10.47439296,126.14,126.11,0.06088296]
[1763806941918,0.05409296,126.14,126.12,3.15]
[1763806942119,0.05409296,126.14,126.11,3.21088296]
[1763806942517,3.33409296,126.14,126.11,3.21088296]
[1763806943825,3.33409296,126.14,126.11,10.35278296]
[1763806944122,0.05409296,126.14,126.12,3.15]
[1763806944624,0.05409296,126.14,126.12,10.2913]
[1763806945526,3.33409296,126.14,126.11,3.21088296]
[1763806946422,3.33409296,126.14,126.11,10.35278296]
[1763806946625,0.05409296,126.14,126.12,3.15]
[1763806947627,0.05409296,126.14,126.12,10.2913]
[1763806949029,3.33409296,126.14,126.12,7.1413]
[1763806949420,0.05409296,126.14,126.12,10.2913]
[1763806953033,3.33409296,126.14,126.11,16.76088296]
[1763806953232,3.28,126.12,126.11,0.06088296]
[1763806958933,3.14409296,126.14,126.11,0.06088296]
[1763806959240,3.14409296,126.14,126.11,3.20088296]
[1763806959436,0.05409296,126.14,126.12,3.14]
[1763806960128,0.05409296,126.14,126.12,10.2812]
[1763806960329,0.05409296,126.14,126.13,3.14]
[1763806960725,3.09,126.17,126.14,3.14]
[1763806961640,3.14680626,126.17,126.14,3.19658785]
[1763806964536,10.28540626,126.17,126.14,3.19658785]
[1763806966746,3.14680626,126.17,126.14,3.19658785]
[1763806966949,0.05680626,126.17,126.14,3.19658785]
[1763806967535,3.14680626,126.17,126.14,3.19658785]
[1763806970649,0.05680626,126.17,126.14,10.33658785]
[1763806970844,0.05680626,126.17,126.15,3.14]
[1763806971751,0.05680626,126.17,126.16,3.14]
[1763806972544,16.7,126.22,126.17,3.14]
[1763806972740,3.09,126.23,126.18,3.14]
[1763806973645,0.05116263,126.22,126.19,3.19572597]
[1763806973856,3.14116263,126.22,126.19,3.19572597]
[1763806974054,0.05116263,126.22,126.19,3.19572597]
[1763806976061,0.05116263,126.22,126.2,3.14]
[1763806976364,3.09,126.28,126.21,3.09]
[1763806976660,6.05416594,126.27,126.24,3.09]
[1763806976859,10.2226,126.28,126.24,3.09]
[1763806977161,3.09,126.27,126.22,19.79]
[1763806977361,3.14785192,126.26,126.23,0.05182423]
[1763806978162,3.14785192,126.26,126.23,3.14182423]
[1763806979260,0.05785192,126.26,126.23,3.14182423]
[1763806979460,0.05785192,126.26,126.24,3.09]
[1763806980361,3.09,126.32,126.24,3.09]
[1763806980751,3.09,126.32,126.25,7.1338]
[1763806980957,3.09,126.32,126.26,3.09]
[1763806981366,0.05111211,126.3,126.29,3.09]
[1763806982465,3.14111211,126.3,126.28,0.05959962]
[1763806982854,3.09,126.29,126.28,0.05959962]
[1763806986262,3.18,126.26,126.2,10.2864]
[1763806986462,3.18,126.26,126.21,3.15]
[1763806987164,3.18,126.25,126.19,16.7]
[1763806987464,3.2338945,126.23,126.21,0.05840975]
[1763806988066,3.18,126.29,126.21,3.20840975]
[1763806988260,3.18,126.28,126.21,3.15]
[1763806988460,114.26414626,126.29,126.21,3.15]
[1763806988461,3.18,126.25,126.21,3.15]
[1763806989170,3.23356984,126.24,126.22,0.05571967]
[1763806991364,0.05356984,126.24,126.22,3.20571967]
[1763806991876,3.23356984,126.24,126.22,0.05571967]
[1763806993168,10.36826984,126.24,126.22,0.05571967]
[1763806994463,3.18,126.23,126.22,0.05571967]
[1763806994662,3.18,126.22,126.16,10.2887]
[1763806995677,0.05859532,126.2,126.18,0.05999559]
[1763806995972,0.05859532,126.2,126.18,3.26999559]
[1763806997474,3.23859532,126.2,126.18,0.05999559]
[1763806997865,13.69704158,126.2,126.18,0.05999559]
[1763806998066,3.18,126.19,126.18,0.05999559]
[1763806999267,0.05859532,126.2,126.18,0.05999559]
[1763806999772,3.23859532,126.2,126.18,0.05999559]
[1763807001573,10.37559532,126.2,126.18,0.05999559]
[1763807001767,3.18,126.19,126.18,0.05999559]
[1763807006178,3.18,126.17,126.12,19.91]
[1763807006871,3.18,126.17,126.12,16.7]
[1763807006872,3.18,126.15,126.12,16.7]
[1763807007379,3.23989638,126.15,126.12,16.75551277]
[1763807008176,0.05989638,126.15,126.13,3.21]
[1763807009569,0.05989638,126.15,126.13,10.3506]
[1763807009769,0.05989638,126.15,126.14,3.21]
[1763807013682,3.18,126.18,126.13,7.1406]
[1763807013683,10.3167,126.21,126.16,3.21]
[1763807013878,3.18,126.2,126.16,3.21]
[1763807014676,0.05582037,126.19,126.17,0.049851]
[1763807014871,3.23582037,126.19,126.17,0.049851]
[1763807015077,3.23582037,126.19,126.17,3.259851]
[1763807015078,0.05582037,126.19,126.17,3.259851]
[1763807015282,3.23582037,126.19,126.17,0.049851]
[1763807018987,3.2,126.18,126.17,0.049851]
[1763807019482,0.05582037,126.19,126.17,0.049851]
[1763807019689,3.25582037,126.19,126.17,0.049851]
[1763807020482,0.05582037,126.19,126.17,3.129851]
[1763807021290,0.05582037,126.19,126.17,10.268351]
[1763807021489,0.05582037,126.19,126.18,3.08]
[1763807022386,0.05582037,126.19,126.17,0.049851]
[1763807022584,0.05582037,126.19,126.17,3.129851]
[1763807023489,3.25582037,126.19,126.17,0.049851]
[1763807023890,12.51641406,126.19,126.17,0.049851]
[1763807024089,3.2,126.18,126.17,0.049851]
[1763807025293,3.2,126.16,126.13,16.7]
[1763807026385,3.26015831,126.16,126.13,16.75001683]
[1763807026781,3.26015831,126.16,126.13,19.83001683]
[1763807027493,10.39935831,126.16,126.13,19.83001683]
[1763807028293,7.1398,126.15,126.13,19.83001683]
[1763807028592,10.3398,126.15,126.13,16.75001683]
[1763807029295,10.3398,126.15,126.13,0.05001683]
[1763807030892,3.2,126.15,126.13,0.05001683]
[1763807033398,10.3397,126.15,126.13,0.05001683]
[1763807033785,3.2,126.14,126.13,0.05001683]
[1763807033993,3.2,126.12,126.09,19.78]
[1763807034193,3.2,126.12,126.09,16.7]
[1763807034793,3.2,126.12,126.09,19.78]
[1763807034995,3.25667014,126.12,126.09,19.8386893]
[1763807035186,10.39817014,126.12,126.09,19.8386893]
[1763807035591,3.2,126.11,126.09,16.7586893]
[1763807035788,3.2,126.1,126.09,16.7586893]
[1763807035989,3.2,126.1,126.09,0.0586893]
[1763807040393,3.2,126.08,126.05,3.08]
[1763807041489,3.25507317,126.08,126.05,3.13664183]
[1763807041885,3.25507317,126.08,126.05,0.05664183]
[1763807044094,3.2,126.06,126.0,3.08]
[1763807044596,3.2,126.02,125.96,3.08]
[1763807044790,3.2,126.02,125.98,3.08]
[1763807045190,0.05841502,126.01,125.99,0.0549303]
[1763807045393,0.05841502,126.01,126.0,3.08]
[1763807045994,3.2,126.05,126.0,3.08]
[1763807046898,0.05903465,126.04,126.0,10.2279]
[1763807047098,3.29,126.03,126.0,7.1479]
[1763807047286,3.29,126.03,125.99,3.3249303]
[1763807048095,3.29,126.03,125.99,0.0549303]
[1763807048297,3.29,126.01,125.99,0.0549303]
[1763807048487,3.34812646,126.01,125.99,0.0549303]
[1763807054601,3.29,125.99,125.93,29.26499369]
[1763807055608,3.35020164,125.97,125.95,0.05114369]
[1763807056108,3.35020164,125.97,125.92,9.01648]
[1763807056299,3.35020164,125.97,125.92,5.74648]
[1763807056499,3.29,125.95,125.92,5.74648]
[1763807058906,3.29,125.94,125.92,5.74648]
[1763807059102,3.29,125.93,125.92,5.74648]
[1763807061000,0.05773089,125.94,125.92,9.01648]
[1763807061201,0.05773089,125.94,125.93,3.27]
[1763807062612,3.34773089,125.94,125.92,5.74648]
[1763807064907,3.29,125.93,125.92,5.74648]
[1763807067515,3.29,125.93,125.92,2.41648]
[1763807067709,3.29,125.91,125.88,3.27]
[1763807068009,114.61896292,125.91,125.82,3.27]
[1763807068209,3.34538894,125.88,125.82,3.27]
[1763807068413,3.29,125.86,125.82,3.27]
[1763807068716,0.05728273,125.85,125.82,3.27]
[1763807070011,3.34728273,125.85,125.82,3.27]
[1763807070219,3.34728273,125.85,125.79,10.4297]
[1763807070517,3.34728273,125.85,125.8,3.27]
[1763807071014,3.34728273,125.85,125.81,3.27]
[1763807071411,3.34728273,125.85,125.81,10.4287]
[1763807072107,3.34728273,125.85,125.81,3.27]
[1763807072411,3.34728273,125.85,125.78,3.27]
[1763807072612,3.29,125.82,125.78,3.27]
[1763807072813,0.05728273,125.85,125.76,19.99]
[1763807072814,3.34913811,125.81,125.76,19.99]
[1763807073010,3.29,125.8,125.73,7.1632]
[1763807073212,3.34942734,125.78,125.71,3.27]
[1763807073514,10.51052734,125.78,125.71,3.27]
[1763807073709,3.29,125.77,125.71,3.27]
[1763807074014,3.29,125.77,125.7,16.72]
[1763807074015,3.29,125.74,125.68,3.27]
[1763807074212,3.34461755,125.72,125.68,3.27]
[1763807075211,0.05461755,125.72,125.71,3.27]
[1763807076314,3.29,125.78,125.72,3.14]
[1763807076716,3.29,125.78,125.72,10.3037]
[1763807077012,3.29,125.78,125.73,3.11]
[1763807077213,0.05607243,125.76,125.74,0.05867143]
[1763807077614,0.05607243,125.76,125.74,3.16867143]
[1763807078215,3.15607243,125.76,125.74,0.05867143]
[1763807081109,3.1,125.75,125.69,16.74]
[1763807081320,3.1,125.75,125.69,19.85]
[1763807082314,0.0505693,125.73,125.7,3.11]
[1763807083216,3.1505693,125.73,125.69,16.74]
[1763807083513,3.1505693,125.73,125.67,3.11]
[1763807083713,10.2643,125.72,125.67,3.11]
[1763807083923,3.1,125.71,125.67,3.11]
[1763807084110,3.15650041,125.7,125.64,3.11]
[1763807085019,111.4687,125.69,125.64,3.11]
[1763807085213,3.1,125.68,125.61,3.11]
[1763807085409,0.05604091,125.66,125.61,3.11]
[1763807085815,0.05604091,125.66,125.63,3.11]
[1763807086210,0.05604091,125.66,125.63,10.2789]
[1763807086509,0.05604091,125.66,125.64,3.11]
[1763807088519,0.05604091,125.66,125.61,19.87]
[1763807088817,0.05604091,125.66,125.62,3.11]
[1763807089512,0.05604091,125.66,125.63,3.11]
[1763807090216,0.05604091,125.66,125.64,3.11]
[1763807091221,0.05604091,125.66,125.64,10.2784]
[1763807091422,0.05604091,125.66,125.65,3.11]
[1763807093521,0.05604091,125.66,125.62,7.1694]
[1763807093720,0.05604091,125.66,125.63,3.11]
[1763807094130,3.15604091,125.66,125.6,10.2807]
[1763807094321,0.05604091,125.66,125.62,3.11]
[1763807094521,0.05509241,125.65,125.62,3.11]
[1763807095928,7.1651,125.71,125.64,3.11]
[1763807096113,3.1,125.71,125.64,3.11]
[1763807096315,3.1,125.71,125.66,3.11]
[1763807096520,3.1,125.74,125.66,3.11]
[1763807097026,3.15823603,125.71,125.69,0.05517219]
[1763807098518,0.05823603,125.71,125.69,3.16517219]
[1763807099933,0.05823603,125.71,125.69,0.05517219]
[1763807099934,3.15823603,125.71,125.69,0.05517219]
[1763807100233,3.1,125.7,125.69,0.05517219]
[1763807100433,3.1,125.7,125.64,16.78]
[1763807101029,3.1,125.69,125.65,3.11]
[1763807101430,0.05944135,125.68,125.65,3.11]
[1763807103338,3.15944135,125.68,125.63,16.78]
[1763807103529,0.05456945,125.67,125.63,19.89]
[1763807103940,3.15456945,125.67,125.63,19.89]
[1763807104143,10.32166945,125.67,125.63,19.89]
[1763807104336,10.32166945,125.67,125.63,16.78]
[1763807104538,3.1,125.66,125.63,16.78]
[1763807104840,3.1,125.64,125.52,111.6112]
[1763807105047,3.1,125.64,125.58,3.11]
[1763807105251,3.16007169,125.61,125.57,16.78]
[1763807105449,3.16007169,125.61,125.54,3.11]
[1763807105654,3.1,125.61,125.55,16.78]
[1763807105951,3.12077802,125.59,125.55,16.78]
[1763807106452,3.12077802,125.59,125.56,3.28]
[1763807106453,0.06077802,125.59,125.56,3.28]
[1763807107353,3.06,125.65,125.53,3.28]
[1763807107547,3.06,125.65,125.55,3.28]
[1763807107946,3.06,125.65,125.56,3.28]
[1763807108147,3.06,125.63,125.56,3.28]
[1763807108356,3.06,125.63,125.51,175.00717443]
[1763807108357,3.06,125.6,125.58,0.05467859]
[1763807108556,3.11049,125.6,125.58,0.00467859]
[1763807108849,3.11049,125.6,125.52,3.28]
[1763807109057,120.50913907,125.62,125.52,3.28]
[1763807109258,3.06,125.6,125.52,3.28]
[1763807109446,3.06,125.57,125.5,50.0]
[1763807109648,0.05187411,125.55,125.51,3.28]
[1763807109843,3.11187411,125.55,125.5,50.0]
[1763807110046,0.05187411,125.55,125.51,3.28]
[1763807110242,0.05187411,125.55,125.52,114.897]
[1763807110560,3.06,125.61,125.54,3.28]
[1763807110754,3.06,125.59,125.5,50.0]
[1763807110954,3.06,125.53,125.5,50.0]
[1763807111159,114.6556,125.55,125.5,50.0]
[1763807111453,3.06,125.53,125.5,50.0]
[1763807111658,0.05946929,125.54,125.51,0.05094509]
[1763807112367,0.05946929,125.54,125.51,3.33094509]
[1763807113054,3.11946929,125.54,125.51,0.05094509]
[1763807113352,0.05946929,125.54,125.51,3.33094509]
[1763807114357,7.08271425,125.6,125.52,3.28]
[1763807114549,3.06,125.61,125.52,3.28]
[1763807114745,3.06,125.61,125.53,3.28]
[1763807115150,5.93969109,125.6,125.53,3.28]
[1763807115452,3.06,125.61,125.51,111.6283]
[1763807115453,0.05380758,125.58,125.55,3.33398849]
[1763807118556,3.11380758,125.58,125.55,0.05398849]
[1763807119258,5.94716078,125.57,125.55,0.05398849]
[1763807119459,3.11380758,125.58,125.55,0.05398849]
[1763807119761,0.05380758,125.58,125.55,0.05398849]
[1763807119962,0.05380758,125.58,125.55,3.33398849]
[1763807120164,3.06,125.57,125.55,0.05398849]
[1763807120365,0.05380758,125.58,125.55,0.05398849]
[1763807120554,3.11380758,125.58,125.55,0.05398849]
[1763807121656,7.1729,125.57,125.55,0.05398849]
[1763807121962,3.11380758,125.58,125.55,0.05398849]
[1763807122156,0.05380758,125.58,125.55,3.33398849]
[1763807122958,5.9499947,125.62,125.58,3.28]
[1763807123156,114.5495,125.67,125.58,3.28]
[1763807123157,121.63221425,125.67,125.58,3.28]
[1763807123466,7.1684,125.65,125.58,3.28]
[1763807123658,5.95403948,125.64,125.58,3.28]
[1763807123867,0.05251295,125.62,125.6,3.33874772]
[1763807124067,5.95474449,125.67,125.62,3.28]
[1763807124259,6.00815628,125.66,125.63,0.05705514]
[1763807124566,0.05341179,125.66,125.63,3.33705514]
[1763807124763,3.11341179,125.66,125.63,0.05705514]
[1763807124968,9.01698052,125.65,125.63,0.05705514]
[1763807125263,3.11341179,125.66,125.63,0.05705514]
[1763807125474,3.06,125.64,125.58,3.28]
[1763807125763,9.01725687,125.63,125.58,3.28]
[1763807126073,7.1684,125.65,125.58,3.28]
[1763807126366,3.06,125.67,125.58,3.28]
[1763807126563,0.05041636,125.64,125.62,3.28]
[1763807127364,5.9675782,125.69,125.63,3.28]
[1763807127666,3.06,125.72,125.63,3.28]
[1763807127871,5.96895191,125.71,125.65,3.28]
[1763807128068,114.4875,125.74,125.67,3.28]
[1763807128363,114.4875,125.74,125.69,0.06079259]
[1763807128364,0.05387621,125.72,125.69,0.06079259]
[1763807128758,0.05387621,125.72,125.69,3.34079259]
[1763807129673,10.2249,125.71,125.69,0.06079259]
[1763807130170,3.06,125.7,125.63,20.18]
[1763807130861,3.06,125.7,125.64,3.28]
[1763807131061,3.06,125.7,125.66,0.05929573]
[1763807131062,0.05246925,125.68,125.66,0.05929573]
[1763807131265,0.05246925,125.68,125.66,3.33929573]
[1763807131661,3.11246925,125.68,125.66,0.05929573]
[1763807131969,0.05246925,125.68,125.66,0.05929573]
[1763807132265,0.05246925,125.68,125.57,3.28]
[1763807132567,7.1671,125.67,125.58,3.28]
[1763807132762,3.06,125.69,125.6,3.28]
[1763807132961,111.4622,125.7,125.6,3.28]
[1763807133162,111.4622,125.7,125.61,3.28]
[1763807133163,7.1661,125.69,125.61,3.28]
[1763807133367,7.1661,125.69,125.64,3.33205526]
[1763807133368,0.05750338,125.66,125.64,3.33205526]
[1763807135572,114.4971,125.73,125.64,3.33205526]
[1763807135865,114.4971,125.73,125.64,3.28]
[1763807136074,7.1644,125.72,125.65,3.01]